{"text_format":"1","workbook":"xlsx","n_sheets":1,"sheets":["給与支払報告書（個人別明細書）"],"not_rendered":{"charts":0,"images":0,"macros":0,"external_links":0,"defined_names":1,"comments":0,"pivot_tables":0},"unopened":[],"bounds":{"document_bytes":16777216,"sheet_cells":100000,"rows_first":2000,"rows_last":500,"rows_between":2000,"halvings":0,"cell_chars":16384,"cell_head_chars":4096},"cells_cut":0,"cells_raw":0,"read":"whole","date_system":"1900"}

{"sheet":"給与支払報告書（個人別明細書）","index":0,"n_rows":182,"n_cols":184,"rows_kept":182,"cut":false,"hidden":false,"merged":[[178,168,179,184],[172,153,173,156],[172,106,173,108],[172,121,173,124],[172,125,173,128],[172,79,173,82],[172,83,173,86],[172,87,173,90],[172,96,173,99],[172,100,173,102],[172,103,173,105],[172,43,173,46],[172,47,173,50],[172,51,173,54],[172,55,173,58],[172,59,173,62],[172,63,173,78],[178,163,178,167],[181,2,181,14],[181,15,181,38],[181,39,181,58],[176,6,177,14],[176,15,177,90],[176,100,177,108],[176,109,177,184],[178,6,179,14],[178,15,179,68],[178,69,178,73],[178,74,179,90],[178,100,179,108],[178,109,179,162],[172,157,173,172],[172,173,173,176],[172,177,173,180],[172,15,173,18],[172,19,173,22],[172,23,173,26],[172,27,173,30],[172,31,173,34],[172,35,173,38],[172,181,173,184],[174,2,179,5],[174,6,175,14],[174,15,175,40],[174,41,175,90],[174,96,179,99],[174,100,175,184],[172,129,173,132],[172,137,173,140],[172,141,173,144],[168,2,171,5],[168,6,171,8],[168,9,171,11],[168,12,171,14],[168,15,171,18],[168,19,168,26],[169,19,171,22],[169,23,171,26],[170,157,171,172],[170,173,171,176],[170,177,171,180],[170,181,171,184],[171,0,179,1],[171,94,179,95],[172,2,173,5],[172,6,173,8],[172,9,173,11],[172,12,173,14],[170,59,171,62],[170,63,171,78],[170,79,171,82],[170,83,171,86],[170,87,171,90],[170,137,171,140],[168,121,171,124],[168,125,171,128],[168,129,171,132],[168,133,173,136],[168,137,169,156],[168,157,169,184],[170,141,171,144],[170,145,171,148],[166,137,167,172],[164,43,164,50],[164,51,164,72],[164,73,165,74],[164,75,165,78],[164,99,167,100],[164,101,164,108],[169,113,171,116],[169,117,171,120],[168,27,171,30],[168,31,171,34],[168,35,171,38],[168,39,173,42],[168,43,169,62],[168,63,169,90],[170,43,171,46],[170,47,171,50],[170,51,171,54],[170,55,171,58],[172,109,173,112],[172,113,173,116],[172,117,173,120],[170,149,171,152],[170,153,171,156],[168,96,171,99],[168,100,171,102],[168,103,171,105],[168,106,171,108],[168,109,171,112],[168,113,168,120],[172,145,173,148],[172,149,173,152],[164,5,167,6],[164,7,164,14],[164,15,164,32],[164,33,165,34],[164,35,165,38],[164,41,167,42],[166,7,167,14],[166,15,167,38],[160,167,161,168],[160,169,161,172],[161,7,161,14],[161,15,161,32],[161,43,161,50],[161,51,161,72],[161,79,167,90],[161,101,161,108],[161,109,161,126],[161,137,161,144],[160,109,160,126],[160,127,161,128],[160,129,161,132],[160,135,163,136],[160,137,160,144],[160,145,160,166],[161,145,161,166],[162,101,163,132],[162,137,163,172],[160,43,160,50],[160,51,160,72],[160,73,161,74],[164,167,165,168],[164,169,165,172],[158,7,159,14],[158,15,159,38],[158,43,159,50],[158,51,159,78],[158,101,159,132],[158,137,159,172],[156,129,157,132],[156,135,159,136],[156,137,156,144],[156,145,156,166],[156,167,157,168],[156,169,157,172],[156,43,156,50],[156,51,156,72],[156,73,157,74],[156,75,157,78],[166,43,167,50],[166,51,167,78],[165,7,165,14],[165,15,165,32],[165,43,165,50],[165,51,165,72],[165,101,165,108],[165,109,165,126],[165,137,165,144],[165,145,165,166],[164,109,164,126],[164,127,165,128],[164,129,165,132],[164,135,167,136],[164,137,164,144],[164,145,164,166],[156,5,159,6],[156,7,156,14],[156,15,156,32],[156,33,157,34],[156,35,157,38],[156,41,159,42],[157,7,157,14],[157,15,157,32],[153,137,153,144],[153,145,153,166],[154,7,155,14],[154,15,155,38],[154,43,155,50],[154,51,155,78],[154,101,155,132],[154,137,155,172],[160,75,161,78],[160,99,163,100],[160,101,160,108],[162,43,163,50],[162,51,163,78],[160,5,163,6],[160,7,160,14],[160,15,160,32],[160,33,161,34],[160,35,161,38],[160,41,163,42],[162,7,163,14],[162,15,163,38],[157,109,157,126],[157,137,157,144],[157,145,157,166],[153,15,153,32],[153,43,153,50],[153,51,153,72],[153,79,160,90],[152,101,152,108],[152,109,152,126],[152,127,153,128],[152,129,153,132],[152,133,167,134],[152,135,155,136],[153,101,153,108],[153,109,153,126],[156,109,156,126],[156,127,157,128],[152,51,152,72],[152,73,153,74],[152,75,153,78],[152,79,152,85],[152,96,167,98],[152,99,155,100],[156,99,159,100],[156,101,156,108],[157,43,157,50],[157,51,157,72],[157,101,157,108],[166,101,167,132],[150,174,151,184],[152,2,167,4],[152,5,155,6],[152,7,152,14],[152,15,152,32],[152,33,153,34],[152,35,153,38],[152,39,167,40],[152,41,155,42],[152,43,152,50],[149,7,151,14],[149,15,151,38],[149,101,151,108],[149,109,151,132],[150,63,151,72],[150,80,151,90],[147,174,147,184],[148,56,151,62],[148,63,149,72],[148,73,151,79],[148,80,149,90],[148,150,151,156],[148,157,149,166],[148,167,151,173],[148,174,149,184],[150,157,151,166],[152,137,152,144],[152,145,152,166],[152,167,153,168],[152,169,153,172],[152,173,167,184],[153,7,153,14],[147,7,148,14],[147,15,148,32],[147,46,151,55],[147,63,147,72],[147,80,147,90],[147,101,148,108],[147,109,148,126],[147,140,151,149],[147,157,147,166],[146,129,148,132],[146,133,151,139],[146,140,146,149],[146,150,147,156],[146,157,146,166],[146,167,147,173],[146,73,147,79],[146,80,146,90],[146,96,151,100],[146,101,146,108],[146,109,146,126],[146,127,148,128],[146,2,151,6],[146,7,146,14],[146,15,146,32],[146,33,148,34],[146,35,148,38],[146,39,151,45],[146,46,146,55],[146,56,147,62],[146,63,146,72],[144,159,145,166],[144,167,144,184],[145,16,145,23],[145,32,145,37],[145,38,145,42],[145,43,145,47],[145,73,145,90],[145,110,145,117],[145,126,145,131],[145,132,145,136],[144,118,145,125],[144,126,144,131],[144,132,144,136],[144,137,144,141],[144,142,145,150],[144,151,145,158],[145,137,145,141],[144,48,145,56],[144,57,145,64],[144,65,145,72],[144,73,144,90],[144,102,145,109],[146,174,146,184],[142,159,143,166],[142,167,142,184],[143,32,143,37],[143,38,143,42],[143,43,143,47],[143,73,143,90],[143,126,143,131],[143,132,143,136],[143,137,143,141],[143,167,143,184],[142,118,143,125],[142,126,142,131],[142,132,142,136],[142,137,142,141],[142,142,143,150],[142,151,143,158],[142,57,143,64],[142,65,143,72],[142,73,142,90],[142,96,145,101],[142,102,143,109],[142,110,143,117],[145,167,145,184],[141,110,141,117],[140,102,141,109],[140,110,140,117],[140,118,141,125],[140,126,140,134],[140,135,141,142],[140,143,140,149],[141,126,141,134],[141,143,141,149],[140,49,140,55],[140,56,141,64],[140,65,140,72],[140,73,141,80],[144,110,144,117],[144,8,145,15],[144,16,144,23],[144,24,145,31],[144,32,144,37],[144,38,144,42],[144,43,144,47],[140,81,140,90],[140,96,141,101],[140,2,141,7],[140,8,141,15],[140,16,140,23],[140,24,141,31],[140,32,140,40],[140,41,141,48],[133,2,139,6],[133,7,139,90],[133,96,139,100],[133,101,139,184],[129,96,129,97],[141,159,141,166],[141,175,141,184],[142,2,145,7],[142,8,143,15],[142,16,143,23],[142,24,143,31],[142,32,142,37],[142,38,142,42],[142,43,142,47],[142,48,143,56],[140,150,141,158],[140,159,140,166],[140,167,141,174],[140,175,140,184],[141,16,141,23],[141,32,141,40],[141,49,141,55],[141,65,141,72],[141,81,141,90],[129,22,129,35],[129,36,129,37],[121,167,122,172],[121,173,122,178],[121,79,122,84],[121,85,122,90],[121,96,122,99],[121,100,122,103],[121,104,126,107],[123,96,126,99],[123,100,126,103],[129,2,129,3],[123,153,126,156],[123,157,126,161],[123,162,126,166],[123,167,126,172],[123,173,126,178],[123,179,126,184],[123,59,126,62],[123,63,126,67],[123,68,126,72],[123,73,126,78],[120,93,137,93],[121,63,122,67],[121,68,122,72],[121,73,122,78],[127,2,128,19],[127,20,128,37],[127,38,128,55],[127,56,128,73],[127,74,128,90],[129,4,129,17],[129,18,129,19],[129,20,129,21],[115,96,117,107],[115,157,120,161],[115,162,118,178],[115,179,120,184],[118,96,120,103],[118,104,120,107],[119,162,120,172],[119,173,120,178],[115,2,117,13],[115,63,120,67],[115,68,118,84],[115,85,120,90],[118,2,120,9],[118,10,120,13],[121,59,122,62],[121,2,122,5],[121,6,122,9],[121,10,126,13],[119,68,120,78],[119,79,120,84],[123,79,126,84],[123,85,126,90],[121,179,122,184],[123,2,126,5],[123,6,126,9],[121,153,122,156],[121,157,122,161],[121,162,122,166],[121,39,122,42],[121,43,122,46],[121,47,122,50],[121,51,122,54],[112,147,114,164],[112,165,114,184],[110,141,111,146],[110,147,111,150],[110,151,111,157],[110,158,111,164],[110,165,111,166],[110,167,111,182],[110,96,114,110],[110,111,111,112],[110,113,111,126],[110,127,111,128],[110,129,111,134],[110,135,111,140],[110,53,111,56],[110,57,111,63],[110,64,111,70],[110,71,111,72],[110,73,111,88],[110,89,111,90],[110,35,111,40],[110,41,111,46],[110,47,111,52],[108,2,109,16],[108,17,109,34],[108,35,109,52],[108,53,109,70],[108,71,109,90],[108,96,109,110],[105,49,107,52],[105,53,105,58],[105,59,105,90],[105,143,107,146],[105,147,105,152],[105,153,105,184],[106,53,107,90],[106,147,107,184],[98,94,170,95],[98,96,107,99],[98,100,107,102],[98,103,107,142],[98,143,99,149],[98,150,99,184],[100,143,102,184],[103,143,104,147],[110,183,111,184],[112,17,114,34],[112,35,114,52],[112,53,114,70],[112,71,114,90],[112,111,114,128],[112,129,114,146],[103,148,104,184],[108,111,109,128],[98,0,170,1],[98,2,107,5],[98,6,107,8],[98,9,107,48],[98,49,99,55],[98,56,99,90],[100,49,102,54],[100,55,102,90],[103,49,104,53],[103,54,104,90],[86,163,86,167],[86,168,87,184],[88,0,88,90],[89,2,91,90],[89,96,91,184],[92,2,95,89],[92,96,95,183],[86,6,87,14],[86,15,87,68],[86,69,86,73],[86,74,87,90],[86,100,87,108],[86,109,87,162],[108,129,109,146],[108,147,109,164],[108,165,109,184],[110,2,114,16],[110,17,111,18],[110,19,111,32],[110,33,111,34],[82,109,83,134],[82,135,83,184],[84,6,85,14],[84,15,85,90],[84,100,85,108],[84,109,85,184],[80,157,81,172],[80,173,81,176],[80,177,81,180],[80,181,81,184],[82,2,87,5],[82,6,83,14],[82,15,83,40],[82,41,83,90],[82,96,87,99],[82,100,83,108],[80,129,81,132],[80,137,81,140],[80,141,81,144],[80,145,81,148],[80,149,81,152],[80,153,81,156],[80,106,81,108],[80,109,81,112],[80,113,81,116],[80,117,81,120],[80,121,81,124],[80,125,81,128],[80,79,81,82],[80,83,81,86],[80,87,81,90],[80,96,81,99],[80,100,81,102],[80,103,81,105],[80,43,81,46],[80,47,81,50],[80,51,81,54],[80,55,81,58],[80,59,81,62],[80,63,81,78],[80,15,81,18],[80,19,81,22],[80,23,81,26],[80,27,81,30],[80,31,81,34],[80,35,81,38],[78,157,79,172],[78,173,79,176],[78,177,79,180],[76,31,79,34],[76,35,79,38],[76,39,81,42],[76,43,77,62],[76,63,77,90],[78,43,79,46],[78,47,79,50],[78,51,79,54],[78,55,79,58],[78,181,79,184],[79,0,87,1],[79,94,87,95],[80,2,81,5],[80,6,81,8],[80,9,81,11],[80,12,81,14],[78,59,79,62],[78,63,79,78],[78,79,79,82],[78,83,79,86],[78,87,79,90],[78,137,79,140],[76,121,79,124],[76,125,79,128],[76,129,79,132],[76,133,81,136],[76,137,77,156],[76,157,77,184],[78,141,79,144],[78,145,79,148],[78,149,79,152],[78,153,79,156],[76,96,79,99],[76,100,79,102],[76,103,79,105],[76,106,79,108],[76,109,79,112],[76,113,76,120],[77,113,79,116],[77,117,79,120],[76,27,79,30],[76,2,79,5],[76,6,79,8],[76,9,79,11],[76,12,79,14],[76,15,79,18],[76,19,76,26],[77,19,79,22],[77,23,79,26],[73,137,73,144],[73,145,73,166],[74,7,75,14],[74,15,75,38],[74,43,75,50],[74,51,75,78],[74,101,75,108],[74,109,75,132],[74,137,75,144],[74,145,75,172],[72,5,75,6],[72,145,72,166],[72,167,73,168],[72,169,73,172],[73,7,73,14],[73,15,73,32],[73,43,73,50],[73,51,73,72],[73,101,73,108],[73,109,73,126],[72,99,75,100],[72,101,72,108],[72,109,72,126],[72,127,73,128],[70,173,75,184],[72,7,72,14],[72,15,72,32],[72,33,73,34],[72,35,73,38],[72,41,75,42],[72,43,72,50],[72,51,72,72],[72,73,73,74],[70,7,71,14],[70,15,71,38],[70,43,71,50],[70,51,71,78],[70,79,75,90],[70,101,71,108],[70,109,71,132],[70,137,71,144],[70,145,71,172],[72,137,72,144],[72,75,73,78],[68,169,69,172],[69,7,69,14],[69,15,69,32],[69,43,69,50],[69,51,69,72],[69,79,69,90],[69,101,69,108],[69,109,69,126],[69,137,69,144],[68,109,68,126],[68,127,69,128],[68,129,69,132],[68,135,71,136],[68,137,68,144],[68,145,68,166],[69,145,69,166],[68,43,68,50],[68,51,68,72],[68,73,69,74],[68,75,69,78],[68,99,71,100],[62,173,68,184],[66,109,67,132],[65,109,65,126],[64,129,65,132],[64,5,67,6],[64,7,64,14],[64,15,64,32],[64,33,65,34],[64,35,65,38],[64,41,67,42],[64,43,64,50],[64,51,64,72],[68,101,68,108],[68,5,71,6],[68,7,68,14],[68,15,68,32],[68,33,69,34],[68,35,69,38],[68,41,71,42],[66,7,67,14],[66,15,67,38],[66,43,67,50],[66,51,67,78],[66,101,67,108],[65,7,65,14],[65,15,65,32],[65,43,65,50],[65,51,65,72],[65,101,65,108],[64,99,67,100],[69,173,69,184],[68,167,69,168],[60,167,61,168],[60,169,61,172],[56,150,59,156],[56,157,57,166],[60,173,61,184],[61,7,61,14],[61,15,61,32],[61,43,61,50],[61,51,61,72],[61,101,61,108],[60,101,60,108],[60,109,60,126],[60,127,61,128],[60,129,61,132],[60,133,75,134],[60,135,63,136],[61,109,61,126],[64,101,64,108],[64,109,64,126],[64,127,65,128],[60,51,60,72],[60,73,61,74],[64,135,67,136],[64,137,64,144],[64,145,64,166],[64,167,65,168],[64,169,65,172],[65,137,65,144],[65,145,65,166],[66,137,67,144],[66,145,67,172],[62,145,63,172],[60,2,75,4],[60,5,63,6],[60,7,60,14],[60,15,60,32],[60,33,61,34],[60,35,61,38],[60,39,75,40],[60,41,63,42],[60,43,60,50],[57,7,59,14],[57,15,59,38],[57,101,59,108],[57,109,59,132],[58,63,59,72],[58,80,59,90],[61,137,61,144],[61,145,61,166],[62,7,63,14],[62,15,63,38],[62,43,63,50],[62,51,63,78],[62,79,68,90],[62,101,63,108],[62,109,63,132],[62,137,63,144],[60,137,60,144],[60,145,60,166],[72,129,73,132],[72,135,75,136],[54,2,59,6],[54,56,55,62],[54,63,54,72],[56,167,59,173],[56,174,57,184],[58,157,59,166],[54,174,54,184],[55,7,56,14],[55,15,56,32],[55,46,59,55],[55,63,55,72],[55,80,55,90],[55,101,56,108],[55,109,56,126],[55,140,59,149],[55,157,55,166],[54,129,56,132],[54,133,59,139],[54,140,54,149],[54,150,55,156],[54,157,54,166],[54,167,55,173],[54,73,55,79],[54,80,54,90],[54,96,59,100],[54,101,54,108],[54,109,54,126],[54,127,56,128],[58,174,59,184],[54,7,54,14],[54,15,54,32],[54,33,56,34],[54,35,56,38],[54,39,59,45],[54,46,54,55],[53,16,53,23],[53,32,53,37],[53,38,53,42],[53,43,53,47],[53,73,53,90],[53,110,53,117],[53,126,53,131],[53,132,53,136],[52,118,53,125],[52,126,52,131],[52,132,52,136],[52,137,52,141],[52,142,53,150],[52,151,53,158],[53,137,53,141],[52,48,53,56],[52,57,53,64],[52,65,53,72],[52,73,52,90],[52,102,53,109],[55,174,55,184],[50,159,51,166],[50,167,50,184],[51,32,51,37],[51,38,51,42],[51,43,51,47],[51,73,51,90],[51,126,51,131],[51,132,51,136],[51,137,51,141],[51,167,51,184],[50,118,51,125],[50,126,50,131],[50,132,50,136],[50,137,50,141],[50,142,51,150],[50,151,51,158],[50,57,51,64],[50,65,51,72],[50,73,50,90],[50,96,53,101],[50,102,51,109],[50,110,51,117],[53,167,53,184],[52,159,53,166],[52,167,52,184],[50,2,53,7],[50,8,51,15],[50,16,51,23],[50,24,51,31],[50,32,50,37],[50,38,50,42],[50,43,50,47],[50,48,51,56],[48,150,49,158],[48,159,48,166],[48,167,49,174],[48,175,48,184],[49,16,49,23],[49,32,49,40],[49,49,49,55],[49,65,49,72],[49,81,49,90],[49,110,49,117],[48,102,49,109],[48,110,48,117],[48,118,49,125],[48,126,48,134],[48,135,49,142],[48,143,48,149],[49,126,49,134],[49,143,49,149],[48,49,48,55],[48,56,49,64],[48,65,48,72],[48,73,49,80],[52,110,52,117],[52,8,53,15],[38,162,40,184],[41,2,47,6],[41,7,47,90],[41,96,47,100],[41,101,47,184],[37,138,37,139],[37,140,37,159],[37,160,37,161],[37,162,37,182],[37,183,37,184],[38,96,40,117],[37,96,37,97],[37,98,37,115],[37,116,37,117],[37,118,37,137],[49,159,49,166],[49,175,49,184],[31,167,34,172],[29,79,30,84],[29,85,30,90],[29,96,30,99],[29,100,30,103],[31,173,34,178],[31,179,34,184],[32,0,78,1],[32,94,78,95],[35,96,36,117],[31,137,34,142],[31,143,34,146],[31,147,34,152],[31,153,34,156],[31,157,34,161],[31,162,34,166],[31,79,34,84],[31,85,34,90],[31,96,34,99],[31,100,34,103],[31,108,34,123],[31,124,34,129],[48,81,48,90],[48,96,49,101],[48,2,49,7],[48,8,49,15],[48,16,48,23],[48,24,49,31],[48,32,48,40],[48,41,49,48],[38,118,40,139],[38,140,40,161],[29,10,34,13],[29,25,30,26],[27,68,28,78],[27,79,28,84],[27,124,28,133],[27,134,28,146],[27,147,28,156],[31,59,34,62],[31,63,34,67],[31,68,34,72],[31,73,34,78],[29,167,30,172],[29,173,30,178],[35,118,36,139],[35,140,36,161],[35,162,36,184],[37,2,37,3],[37,18,37,19],[29,179,30,184],[31,2,34,5],[31,6,34,9],[37,88,37,90],[37,74,37,87],[29,137,30,142],[29,143,30,146],[29,147,30,152],[29,153,30,156],[29,157,30,161],[29,162,30,166],[29,104,34,107],[29,108,30,121],[29,122,30,123],[23,124,26,156],[23,157,28,161],[23,162,26,178],[23,179,28,184]],"merged_total":1287,"flags":["merged_cut"]}
[null,"＊　「左上の様式(市区町村提出用)」に入力していただいた内容が「税務署提出用」、「受給者交付用」に複写されます。"]
[]
[null,null,"※",null,null,null,null,null,null,null,null,null,null,null,null,null,null,null,null,null,null,null,null,null,null,null,null,null,null,null,null,null,null,null,null,null,null,null,"※種　　　　　　　別",null,null,null,null,null,null,null,null,null,null,null,null,null,null,null,null,"※整　理　番　号",null,null,null,null,null,null,null,null,null,null,null,null,null,null,null,null,null,"※"]
[]
[]
[]
[null,null,"支　払\nを受け\nる　者",null,null,null,"住 所",null,null,"※区分",null,null,null,null,null,null,null,null,null,null,null,null,null,null,null,null,null,null,null,null,null,null,null,null,null,null,null,null,null,null,null,null,null,null,null,null,null,null,null,"（受給者番号）"]
[]
[null,null,null,null,null,null,null,null,null,null,null,null,null,null,null,null,null,null,null,null,null,null,null,null,null,null,null,null,null,null,null,null,null,null,null,null,null,null,null,null,null,null,null,null,null,null,null,null,null,"（個人番号）"]
[]
[]
[null,null,null,null,null,null,null,null,null,null,null,null,null,null,null,null,null,null,null,null,null,null,null,null,null,null,null,null,null,null,null,null,null,null,null,null,null,null,null,null,null,null,null,null,null,null,null,null,null,"（役職名）"]
[]
[null,null,null,null,null,null,null,null,null,null,null,null,null,null,null,null,null,null,null,null,null,null,null,null,null,null,null,null,null,null,null,null,null,null,null,null,null,null,null,null,null,null,null,null,null,null,null,null,null,"氏 名",null,null,null,"（フリガナ）"]
[]
[]
[null,null,"種　　　　　別",null,null,null,null,null,null,null,null,null,null,null,null,null,null,"支　払　金　額",null,null,null,null,null,null,null,null,null,null,null,null,null,null,null,null,null,"給与所得控除後の金額　(調整控除後）",null,null,null,null,null,null,null,null,null,null,null,null,null,null,null,null,null,"所得控除の額の合計額",null,null,null,null,null,null,null,null,null,null,null,null,null,null,null,null,null,"源泉徴収税額"]
[8]
[null,null,"給料・賞与",null,null,null,null,null,null,null,null,null,null,null,null,null,null,"内",null,null,null,null,null,null,null,null,null,null,null,null,null,null,null,"円",null,null,null,null,null,null,null,null,null,null,null,null,null,null,null,null,null,"円",null,null,null,null,null,null,null,null,null,null,null,null,null,null,null,null,null,"円",null,"内",null,null,null,null,null,null,null,null,null,null,null,null,null,null,null,null,null,"円"]
[]
[]
[]
[]
[null,null,"(源泉）控除対象配偶者",null,null,null,null,null,null,null,null,null,null,null,"配　偶　者　（特　別）\n控　　除　　の　　額",null,null,null,null,null,null,null,null,null,null,null,null,"控除対象扶養親族等の数\n(配偶者を除く。)",null,null,null,null,null,null,null,null,null,null,null,null,null,null,null,null,null,null,null,null,null,null,null,null,null,null,null,null,null,null,null,null,null,null,null,"１６歳未満\n扶養親族\nの数",null,null,null,null,"障害者の数\n（本人を除く。）",null,null,null,null,null,null,null,null,null,null,null,null,null,null,null,null,"非居住者\nである\n親族の数"]
[]
[]
[null,null,"の有無等",null,null,null,null,null,null,null,"老人"]
[null,null,null,null,null,null,null,null,null,null,null,null,null,null,null,null,null,null,null,null,null,null,null,null,null,null,null,"特　　定",null,null,null,null,null,null,null,"老　　人",null,null,null,null,null,null,null,null,null,null,null,"その他",null,null,null,null,null,null,null,"特親",null,null,null,null,null,null,null,null,null,null,null,null,"特　　別",null,null,null,null,null,null,null,null,null,null,"その他"]
[]
[null,null,"有",null,null,null,"従有",null,null,null,null,null,null,null,null,null,null,null,null,null,null,null,null,null,null,"円",null,"人",null,null,null,"従人",null,null,null,"内",null,null,null,"人",null,null,null,"従人",null,null,null,"人",null,null,null,"従人",null,null,null,"人",null,null,null,"従人",null,null,null,"人",null,null,null,null,"内",null,null,null,null,"人",null,null,null,null,null,"人",null,null,null,null,null,"人"]
[]
[]
["給与支払報告書（個人別明細書）"]
[]
[]
[null,null,"特定親族特別控除の額",null,null,null,null,null,null,null,null,null,null,null,null,null,null,null,null,null,"社会保険料等の金額",null,null,null,null,null,null,null,null,null,null,null,null,null,null,null,null,null,"生命保険料の控除額",null,null,null,null,null,null,null,null,null,null,null,null,null,null,null,null,null,"地震保険料の控除額",null,null,null,null,null,null,null,null,null,null,null,null,null,null,null,null,null,"住宅借入金等特別控除の額"]
[]
[null,null,null,null,null,null,null,null,null,null,null,null,null,null,null,null,null,null,"円",null,"内",null,null,null,null,null,null,null,null,null,null,null,null,null,null,null,"円",null,null,null,null,null,null,null,null,null,null,null,null,null,null,null,null,null,"円",null,null,null,null,null,null,null,null,null,null,null,null,null,null,null,null,null,"円",null,null,null,null,null,null,null,null,null,null,null,null,null,null,null,"円"]
[]
[]
[]
[null,null,"(摘要)"]
[]
[]
[]
[]
[]
[]
[null,null,"生命保険料\nの金額の\n内訳",null,null,null,null,null,"新生命保険料\nの金額",null,null,null,null,null,null,null,"円",null,null,null,null,null,null,null,"旧生命保険料の金額",null,null,null,null,null,null,null,"円",null,null,null,null,null,null,null,null,"介護医療保\n険料の金額",null,null,null,null,null,null,null,"円",null,null,null,null,null,null,"新個人年金\n保険料の金額",null,null,null,null,null,null,null,null,"円",null,null,null,null,null,null,null,"旧個人年金\n保険料の金額",null,null,null,null,null,null,null,"円"]
[]
[null,null,"住宅借入金\n等特別控除\nの額の内訳",null,null,null,null,null,"住宅借入金等\n特別控除適用数",null,null,null,null,null,null,null,null,null,null,null,null,null,null,null,"居住開始年月日（１回目）",null,null,null,null,null,null,null,"年",null,null,null,null,null,"月",null,null,null,null,"日",null,null,null,null,"住宅借入金等\n特別控除区分（１回目）",null,null,null,null,null,null,null,null,null,null,null,null,null,null,null,null,"住宅借入金等\n年末残高（１回目）",null,null,null,null,null,null,null,"円"]
[]
[null,null,null,null,null,null,null,null,"住宅借入金等\n特別控除可能額",null,null,null,null,null,null,null,"円",null,null,null,null,null,null,null,"居住開始年月日（２回目）",null,null,null,null,null,null,null,"年",null,null,null,null,null,"月",null,null,null,null,"日",null,null,null,null,"住宅借入金等\n特別控除区分（２回目）",null,null,null,null,null,null,null,null,null,null,null,null,null,null,null,null,"住宅借入金等\n年末残高（２回目）",null,null,null,null,null,null,null,"円"]
[]
[null,null,"（源泉・特別）控除対象\n配偶者",null,null,null,null,"（フリガナ）",null,null,null,null,null,null,null,null,null,null,null,null,null,null,null,null,null,null,null,null,null,null,null,null,null,"区分",null,null,null,null,null,"配偶者の\n合計所得",null,null,null,null,null,null,"円",null,null,null,null,null,null,null,null,null,"国民年金保険\n料等の金額",null,null,null,null,null,null,"円",null,null,null,null,null,null,null,null,null,"旧長期損害\n保険料の金額",null,null,null,null,null,null,"円"]
[null,null,null,null,null,null,null,"氏名"]
[null,null,null,null,null,null,null,null,null,null,null,null,null,null,null,null,null,null,null,null,null,null,null,null,null,null,null,null,null,null,null,null,null,null,null,null,null,null,null,null,null,null,null,null,null,null,null,null,null,null,null,null,null,null,null,null,"基礎控除の額",null,null,null,null,null,null,"円",null,null,null,null,null,null,null,null,null,"所得金額\n調整控除額",null,null,null,null,null,null,"円"]
[null,null,null,null,null,null,null,"個人番号"]
[]
[]
[null,null,"控除対象扶養親族等",null,null,1,null,"（フリガナ）",null,null,null,null,null,null,null,null,null,null,null,null,null,null,null,null,null,null,null,null,null,null,null,null,null,"区分",null,null,null,null,null,"１６歳未満の扶養親族",null,1,null,"（フリガナ）",null,null,null,null,null,null,null,null,null,null,null,null,null,null,null,null,null,null,null,null,null,null,null,null,null,null,null,null,null,"区分",null,null,null,null,null,"５人目以降の控除対象扶養親族等の個人番号"]
[null,null,null,null,null,null,null,"氏名",null,null,null,null,null,null,null,null,null,null,null,null,null,null,null,null,null,null,null,null,null,null,null,null,null,null,null,null,null,null,null,null,null,null,null,"氏名"]
[null,null,null,null,null,null,null,"個人番号",null,null,null,null,null,null,null,null,null,null,null,null,null,null,null,null,null,null,null,null,null,null,null,null,null,null,null,null,null,null,null,null,null,null,null,"個人番号"]
[]
[null,null,null,null,null,2,null,"（フリガナ）",null,null,null,null,null,null,null,null,null,null,null,null,null,null,null,null,null,null,null,null,null,null,null,null,null,"区分",null,null,null,null,null,null,null,2,null,"（フリガナ）",null,null,null,null,null,null,null,null,null,null,null,null,null,null,null,null,null,null,null,null,null,null,null,null,null,null,null,null,null,"区分"]
[null,null,null,null,null,null,null,"氏名",null,null,null,null,null,null,null,null,null,null,null,null,null,null,null,null,null,null,null,null,null,null,null,null,null,null,null,null,null,null,null,null,null,null,null,"氏名"]
[null,null,null,null,null,null,null,"個人番号",null,null,null,null,null,null,null,null,null,null,null,null,null,null,null,null,null,null,null,null,null,null,null,null,null,null,null,null,null,null,null,null,null,null,null,"個人番号"]
[]
[null,null,null,null,null,3,null,"（フリガナ）",null,null,null,null,null,null,null,null,null,null,null,null,null,null,null,null,null,null,null,null,null,null,null,null,null,"区分",null,null,null,null,null,null,null,3,null,"（フリガナ）",null,null,null,null,null,null,null,null,null,null,null,null,null,null,null,null,null,null,null,null,null,null,null,null,null,null,null,null,null,"区分"]
[null,null,null,null,null,null,null,"氏名",null,null,null,null,null,null,null,null,null,null,null,null,null,null,null,null,null,null,null,null,null,null,null,null,null,null,null,null,null,null,null,null,null,null,null,"氏名",null,null,null,null,null,null,null,null,null,null,null,null,null,null,null,null,null,null,null,null,null,null,null,null,null,null,null,null,null,null,null,null,null,null,null,"５人目以降の１６歳未満の扶養親族の個人番号"]
[null,null,null,null,null,null,null,"個人番号",null,null,null,null,null,null,null,null,null,null,null,null,null,null,null,null,null,null,null,null,null,null,null,null,null,null,null,null,null,null,null,null,null,null,null,"個人番号"]
[]
[null,null,null,null,null,4,null,"（フリガナ）",null,null,null,null,null,null,null,null,null,null,null,null,null,null,null,null,null,null,null,null,null,null,null,null,null,"区分",null,null,null,null,null,null,null,4,null,"（フリガナ）",null,null,null,null,null,null,null,null,null,null,null,null,null,null,null,null,null,null,null,null,null,null,null,null,null,null,null,null,null,"区分"]
[null,null,null,null,null,null,null,"氏名",null,null,null,null,null,null,null,null,null,null,null,null,null,null,null,null,null,null,null,null,null,null,null,null,null,null,null,null,null,null,null,null,null,null,null,"氏名"]
[null,null,null,null,null,null,null,"個人番号",null,null,null,null,null,null,null,null,null,null,null,null,null,null,null,null,null,null,null,null,null,null,null,null,null,null,null,null,null,null,null,null,null,null,null,"個人番号"]
[]
[null,null,"未成年者",null,null,null,"外国人",null,null,"死亡退職",null,null,"災害者",null,null,"乙　欄",null,null,null,"本人が障害者",null,null,null,null,null,null,null,"寡\n　　\n婦",null,null,null,"ひとり親",null,null,null,"勤労学生",null,null,null,null,null,null,null,"中途就・退職",null,null,null,null,null,null,null,null,null,null,null,null,null,null,null,null,null,null,null,"受給者生年月日"]
[null,null,null,null,null,null,null,null,null,null,null,null,null,null,null,null,null,null,null,"特別",null,null,null,"その他"]
[null,null,null,null,null,null,null,null,null,null,null,null,null,null,null,null,null,null,null,null,null,null,null,null,null,null,null,null,null,null,null,null,null,null,null,null,null,null,null,null,null,null,null,"就職",null,null,null,"退職",null,null,null,"年",null,null,null,"月",null,null,null,"日",null,null,null,"元　号",null,null,null,null,null,null,null,null,null,null,null,null,null,null,null,"年",null,null,null,"月",null,null,null,"日"]
["（市区町村提出用）"]
[null,null,null,null,null,null,null,null,null,null,null,null,null,null,null,null,null,null,null,null,null,null,null,null,null,null,null,null,null,null,null,null,null,null,null,null,null,null,null,null,null,null,null,null,null,null,null,null,null,null,null,7]
[]
[null,null,"支　払　者",null,null,null,"個人番号又は\n法人番号",null,null,null,null,null,null,null,null,null,null,null,null,null,null,null,null,null,null,null,null,null,null,null,null,null,null,null,null,null,null,null,null,null,null,"(支払者の法人番号13桁、個人事業主の場合は個人番号12桁を記載してください。)"]
[]
[null,null,null,null,null,null,"住所（居所）\n又は所在地"]
[]
[null,null,null,null,null,null,"氏名又は名称",null,null,null,null,null,null,null,null,null,null,null,null,null,null,null,null,null,null,null,null,null,null,null,null,null,null,null,null,null,null,null,null,null,null,null,null,null,null,null,null,null,null,null,null,null,null,null,null,null,null,null,null,null,null,null,null,null,null,null,null,null,null,"（電話）"]
[]
[]
[null,null,"（摘要）には、扶養親族(5人以上いる場合)及び続柄並びに普通徴収切替理由（普通徴収希望の場合）並びに前職分の加算額及び支払者等を記入してください。"]
[]
[]
[null,null,{"$f":"+CONCATENATE(IF( A18>26,\" 平成 \",\"令和\"),IF( A18=2,\" 元 \",A18-1),\"年分 　 給 与 所 得 の 源 泉 徴 収 票\")","v":"令和7年分 　 給 与 所 得 の 源 泉 徴 収 票"},null,null,null,null,null,null,null,null,null,null,null,null,null,null,null,null,null,null,null,null,null,null,null,null,null,null,null,null,null,null,null,null,null,null,null,null,null,null,null,null,null,null,null,null,null,null,null,null,null,null,null,null,null,null,null,null,null,null,null,null,null,null,null,null,null,null,null,null,null,null,null,null,null,null,null,null,null,null,null,null,null,null,null,null,null,null,null,null,null,null,null,null,null,{"$f":"+C93","v":"令和7年分 　 給 与 所 得 の 源 泉 徴 収 票"}]
[]
[]
[]
[]
[null,null,null,null,null,null,null,null,null,null,null,null,null,null,null,null,null,null,null,null,null,null,null,null,null,null,null,null,null,null,null,null,null,null,null,null,null,null,null,null,null,null,null,null,null,null,null,null,null,null,null,null,null,null,null,null,null,null,null,null,null,null,null,null,null,null,null,null,null,null,null,null,null,null,null,null,null,null,null,null,null,null,null,null,null,null,null,null,null,null,null,null,null,null,null,null,{"$f":"IF(C98=\"\",\"\",C98)","v":""}]
[null,null,"支　払\nを受け\nる　者",null,null,null,"住 所",null,null,{"$f":"J9","v":0},null,null,null,null,null,null,null,null,null,null,null,null,null,null,null,null,null,null,null,null,null,null,null,null,null,null,null,null,null,null,null,null,null,null,null,null,null,null,null,"（受給者番号）",null,null,null,null,null,null,{"$f":"BE7","v":0},null,null,null,null,null,null,null,null,null,null,null,null,null,null,null,null,null,null,null,null,null,null,null,null,null,null,null,null,null,null,null,null,null,null,null,null,null,null,null,"支　払\nを受け\nる　者",null,null,null,"住 所",null,null,{"$f":"J99","v":0},null,null,null,null,null,null,null,null,null,null,null,null,null,null,null,null,null,null,null,null,null,null,null,null,null,null,null,null,null,null,null,null,null,null,null,null,null,null,null,"（受給者番号）",null,null,null,null,null,null,{"$f":"BE99","v":0}]
[]
[null,null,null,null,null,null,null,null,null,null,null,null,null,null,null,null,null,null,null,null,null,null,null,null,null,null,null,null,null,null,null,null,null,null,null,null,null,null,null,null,null,null,null,null,null,null,null,null,null,"（個人番号）",null,null,null,null,null,{"$f":"BD9","v":0}]
[]
[]
[null,null,null,null,null,null,null,null,null,null,null,null,null,null,null,null,null,null,null,null,null,null,null,null,null,null,null,null,null,null,null,null,null,null,null,null,null,null,null,null,null,null,null,null,null,null,null,null,null,"（役職名）",null,null,null,null,{"$f":"BC12","v":0},null,null,null,null,null,null,null,null,null,null,null,null,null,null,null,null,null,null,null,null,null,null,null,null,null,null,null,null,null,null,null,null,null,null,null,null,null,null,null,null,null,null,null,null,null,null,null,null,null,null,null,null,null,null,null,null,null,null,null,null,null,null,null,null,null,null,null,null,null,null,null,null,null,null,null,null,null,null,null,null,null,null,null,null,null,null,null,null,"（役職名）",null,null,null,null,{"$f":"BC104","v":0}]
[]
[null,null,null,null,null,null,null,null,null,null,null,null,null,null,null,null,null,null,null,null,null,null,null,null,null,null,null,null,null,null,null,null,null,null,null,null,null,null,null,null,null,null,null,null,null,null,null,null,null,"氏 名",null,null,null,"（フリガナ）",null,null,null,null,null,{"$f":"BH14","v":0},null,null,null,null,null,null,null,null,null,null,null,null,null,null,null,null,null,null,null,null,null,null,null,null,null,null,null,null,null,null,null,null,null,null,null,null,null,null,null,null,null,null,null,null,null,null,null,null,null,null,null,null,null,null,null,null,null,null,null,null,null,null,null,null,null,null,null,null,null,null,null,null,null,null,null,null,null,null,null,null,null,null,null,"氏 名",null,null,null,"（フリガナ）",null,null,null,null,null,{"$f":"BH106","v":0}]
[null,null,null,null,null,null,null,null,null,null,null,null,null,null,null,null,null,null,null,null,null,null,null,null,null,null,null,null,null,null,null,null,null,null,null,null,null,null,null,null,null,null,null,null,null,null,null,null,null,null,null,null,null,{"$f":"BB15","v":0},null,null,null,null,null,null,null,null,null,null,null,null,null,null,null,null,null,null,null,null,null,null,null,null,null,null,null,null,null,null,null,null,null,null,null,null,null,null,null,null,null,null,null,null,null,null,null,null,null,null,null,null,null,null,null,null,null,null,null,null,null,null,null,null,null,null,null,null,null,null,null,null,null,null,null,null,null,null,null,null,null,null,null,null,null,null,null,null,null,null,null,null,null,{"$f":"BB107","v":0}]
[]
[null,null,"種　　　　　別",null,null,null,null,null,null,null,null,null,null,null,null,null,null,"支　払　金　額",null,null,null,null,null,null,null,null,null,null,null,null,null,null,null,null,null,"給与所得控除後の金額　(調整控除後）",null,null,null,null,null,null,null,null,null,null,null,null,null,null,null,null,null,"所得控除の額の合計額",null,null,null,null,null,null,null,null,null,null,null,null,null,null,null,null,null,"源泉徴収税額",null,null,null,null,null,null,null,null,null,null,null,null,null,null,null,null,null,null,null,null,null,null,null,null,"種　　　　　別",null,null,null,null,null,null,null,null,null,null,null,null,null,null,"支　払　金　額",null,null,null,null,null,null,null,null,null,null,null,null,null,null,null,null,null,"給与所得控除後の金額　(調整控除後）",null,null,null,null,null,null,null,null,null,null,null,null,null,null,null,null,null,"所得控除の額の合計額",null,null,null,null,null,null,null,null,null,null,null,null,null,null,null,null,null,"源泉徴収税額"]
[]
[null,null,"給料・賞与",null,null,null,null,null,null,null,null,null,null,null,null,null,null,"内",null,{"$f":"T19","v":0},null,null,null,null,null,null,null,null,null,null,null,null,null,"円",null,null,null,null,null,null,null,null,null,null,null,null,null,"円",null,null,null,null,null,null,null,null,null,null,null,null,null,null,null,null,"円",null,null,null,null,null,null,"内",null,{"$f":"BV19","v":0},null,null,null,null,null,null,null,null,null,null,null,null,null,null,null,"円",null,null,null,null,null,null,{"$f":"IF(C111=\"\",\"\",C111)","v":"給料・賞与"},null,null,null,null,null,null,null,null,null,null,null,null,null,null,{"$f":"IF(R111=\"\",\"\",R111)","v":"内"},null,{"$f":"T111","v":0},null,null,null,{"$f":"IF(X111=\"\",\"\",X111)","v":""},null,null,null,null,null,{"$f":"IF(AD111=\"\",\"\",AD111)","v":""},null,null,null,"円",null,null,null,null,null,null,null,null,null,null,null,null,null,"円",null,null,null,null,null,null,null,null,null,null,null,null,null,null,null,null,"円",null,null,null,null,null,null,{"$f":"IF(BT111=\"\",\"\",BT111)","v":"内"},null,{"$f":"BV111","v":0},null,null,{"$f":"IF(BY111=\"\",\"\",BY111)","v":""},null,null,null,null,null,null,{"$f":"IF(CF111=\"\",\"\",CF111)","v":""},null,null,null,null,null,"円"]
[]
[null,null,null,null,null,null,null,null,null,null,null,null,null,null,null,null,null,{"$f":"R21","v":0},null,null,null,null,null,null,null,null,null,null,null,null,null,null,null,null,null,{"$f":"AJ21","v":0},null,null,null,null,null,null,null,null,null,null,null,null,null,null,null,null,null,{"$f":"BB21","v":0},null,null,null,null,null,null,null,null,null,null,null,null,null,null,null,null,null,{"$f":"BT21","v":0},null,null,null,null,null,null,null,null,null,null,null,null,null,null,null,null,null,null,null,null,null,null,null,null,null,null,null,null,null,null,null,null,null,null,null,null,null,null,null,{"$f":"R113","v":0},null,null,null,null,null,{"$f":"IF(X113=\"\",\"\",X113)","v":""},null,null,null,null,null,{"$f":"IF(AD113=\"\",\"\",AD113)","v":""},null,null,null,null,null,{"$f":"AJ113","v":0},null,null,null,null,null,{"$f":"IF(AP113=\"\",\"\",AP113)","v":""},null,null,null,null,null,{"$f":"IF(AV113=\"\",\"\",AV113)","v":""},null,null,null,null,null,{"$f":"BB113","v":0},null,null,null,{"$f":"IF(BF113=\"\",\"\",BF113)","v":""},null,null,null,null,null,null,{"$f":"IF(BM113=\"\",\"\",BM113)","v":""},null,null,null,null,null,null,{"$f":"BT113","v":0},null,null,null,null,{"$f":"IF(BY113=\"\",\"\",BY113)","v":""},null,null,null,null,null,null,{"$f":"IF(CF113=\"\",\"\",CF113)","v":""}]
[]
[]
[null,null,"(源泉）控除対象配偶者",null,null,null,null,null,null,null,null,null,null,null,"配　偶　者　（特　別）\n控　　除　　の　　額",null,null,null,null,null,null,null,null,null,null,null,null,"控除対象扶養親族等の数\n(配偶者を除く。)",null,null,null,null,null,null,null,null,null,null,null,null,null,null,null,null,null,null,null,null,null,null,null,null,null,null,null,null,null,null,null,null,null,null,null,"１６歳未満\n扶養親族\nの数",null,null,null,null,"障害者の数\n（本人を除く。）",null,null,null,null,null,null,null,null,null,null,null,null,null,null,null,null,"非居住者\nである\n親族の数",null,null,null,null,null,null,null,null,null,null,"(源泉）控除対象配偶者",null,null,null,null,null,null,null,null,null,null,null,"配　偶　者　（特　別）\n控　　除　　の　　額",null,null,null,null,null,null,null,null,null,null,null,null,"控除対象扶養親族等の数\n(配偶者を除く。)",null,null,null,null,null,null,null,null,null,null,null,null,null,null,null,null,null,null,null,null,null,null,null,null,null,null,null,null,null,null,null,null,null,null,null,"１６歳未満\n扶養親族\nの数",null,null,null,null,"障害者の数\n（本人を除く。）",null,null,null,null,null,null,null,null,null,null,null,null,null,null,null,null,"非居住者\nである\n親族の数"]
[]
[]
[null,null,"の有無等",null,null,null,null,null,null,null,"老人",null,null,null,null,null,null,null,null,null,null,null,null,null,null,null,null,null,null,null,null,null,null,null,null,null,null,null,null,null,null,null,null,null,null,null,null,null,null,null,null,null,null,null,null,null,null,null,null,null,null,null,null,null,null,null,null,null,null,null,null,null,null,null,null,null,null,null,null,null,null,null,null,null,null,null,null,null,null,null,null,null,null,null,null,null,"の有無等",null,null,null,null,null,null,null,"老人"]
[null,null,null,null,null,null,null,null,null,null,null,null,null,null,null,null,null,null,null,null,null,null,null,null,null,null,null,"特　　定",null,null,null,null,null,null,null,"老　　人",null,null,null,null,null,null,null,null,null,null,null,"その他",null,null,null,null,null,null,null,"特親",null,null,null,null,null,null,null,null,null,null,null,null,"特　　別",null,null,null,null,null,null,null,null,null,null,"その他",null,null,null,null,null,null,null,null,null,null,null,null,null,null,null,null,null,null,null,null,null,null,null,null,null,null,null,null,null,null,null,null,null,null,null,null,null,null,null,null,null,"特　　定",null,null,null,null,null,null,null,"老　　人",null,null,null,null,null,null,null,null,null,null,null,"その他",null,null,null,null,null,null,null,"特親",null,null,null,null,null,null,null,null,null,null,null,null,"特　　別",null,null,null,null,null,null,null,null,null,null,"その他"]
[]
[null,null,"有",null,null,null,"従有",null,null,null,{"$f":"K30","v":0},null,null,null,null,null,null,null,null,null,null,null,null,null,null,"円",null,"人",null,null,null,"従人",null,null,null,"内",null,null,null,"人",null,null,null,"従人",null,null,null,"人",null,null,null,"従人",null,null,null,"人",null,null,null,"従人",null,null,null,"人",null,null,null,null,"内",null,null,null,null,"人",null,null,null,null,null,"人",null,null,null,null,null,"人",null,null,null,null,null,null,null,null,null,null,"有",null,null,null,"従有",null,null,null,{"$f":"K122","v":0},null,null,null,null,null,null,null,null,null,null,null,null,null,null,"円",null,"人",null,null,null,"従人",null,null,null,"内",null,null,null,"人",null,null,null,"従人",null,null,null,"人",null,null,null,"従人",null,null,null,"人",null,null,null,"従人",null,null,null,"人",null,null,null,null,"内",null,null,null,null,"人",null,null,null,null,null,"人",null,null,null,null,null,"人"]
[]
[null,null,{"$f":"C32","v":0},null,null,null,{"$f":"G32","v":0},null,null,null,null,null,null,null,{"$f":"O32","v":0},null,null,null,null,null,null,null,null,null,null,null,null,{"$f":"AB32","v":0},null,null,null,{"$f":"AF32","v":0},null,null,null,{"$f":"AJ32","v":0},null,null,null,{"$f":"AN32","v":0},null,null,null,{"$f":"AR32","v":0},null,null,null,{"$f":"AV32","v":0},null,null,null,{"$f":"AZ32","v":0},null,null,null,{"$f":"BD32","v":0},null,null,null,{"$f":"BH32","v":0},null,null,null,{"$f":"BL32","v":0},null,null,null,null,{"$f":"BQ32","v":0},null,null,null,null,{"$f":"BV32","v":0},null,null,null,null,null,{"$f":"CB32","v":0},null,null,null,null,null,{"$f":"CH32","v":0},null,null,null,null,null,null,null,null,null,null,{"$f":"C124","v":0},null,null,null,{"$f":"G124","v":0},null,null,null,null,null,null,null,{"$f":"O124","v":0},null,null,null,null,null,null,null,null,null,null,null,null,{"$f":"AB124","v":0},null,null,null,{"$f":"AF124","v":0},null,null,null,{"$f":"AJ124","v":0},null,null,null,{"$f":"AN124","v":0},null,null,null,{"$f":"AR124","v":0},null,null,null,{"$f":"AV124","v":0},null,null,null,{"$f":"AZ124","v":0},null,null,null,{"$f":"BD124","v":0},null,null,null,{"$f":"BH124","v":0},null,null,null,{"$f":"BL124","v":0},null,null,null,null,{"$f":"BQ124","v":0},null,null,null,null,{"$f":"BV124","v":0},null,null,null,null,null,{"$f":"CB124","v":0},null,null,null,null,null,{"$f":"CH124","v":0}]
[]
[]
[]
[null,null,"特定親族特別控除の額",null,null,null,null,null,null,null,null,null,null,null,null,null,null,null,null,null,"社会保険料等の金額",null,null,null,null,null,null,null,null,null,null,null,null,null,null,null,null,null,"生命保険料の控除額",null,null,null,null,null,null,null,null,null,null,null,null,null,null,null,null,null,"地震保険料の控除額",null,null,null,null,null,null,null,null,null,null,null,null,null,null,null,null,null,"住宅借入金等特別控除の額",null,null,null,null,null,null,null,null,null,null,null,null,null,null,null,null,null,null,null,null,null,"特定親族特別控除の額",null,null,null,null,null,null,null,null,null,null,null,null,null,null,null,null,null,"社会保険料等の金額",null,null,null,null,null,null,null,null,null,null,null,null,null,null,null,null,null,"生命保険料の控除額",null,null,null,null,null,null,null,null,null,null,null,null,null,null,null,null,null,"地震保険料の控除額",null,null,null,null,null,null,null,null,null,null,null,null,null,null,null,null,null,"住宅借入金等特別控除の額"]
[]
[null,null,null,null,null,null,null,null,null,null,null,null,null,null,null,null,null,null,"円",null,"内",null,{"$f":"W38","v":0},null,null,null,null,null,null,null,null,null,null,null,null,null,"円",null,null,null,null,null,null,null,null,null,null,null,null,null,null,null,null,null,"円",null,null,null,null,null,null,null,null,null,null,null,null,null,null,null,null,null,"円",null,null,null,null,null,null,null,null,null,null,null,null,null,null,null,"円",null,null,null,null,null,null,null,null,null,null,null,null,null,null,null,null,null,null,null,null,null,null,null,"円",null,"内",null,{"$f":"W130","v":0},null,null,null,null,null,null,null,null,null,null,null,null,null,"円",null,null,null,null,null,null,null,null,null,null,null,null,null,null,null,null,null,"円",null,null,null,null,null,null,null,null,null,null,null,null,null,null,null,null,null,"円",null,null,null,null,null,null,null,null,null,null,null,null,null,null,null,"円"]
[null,null,{"$f":"C39","v":0},null,null,null,null,null,null,null,null,null,null,null,null,null,null,null,null,null,{"$f":"U39","v":0},null,null,null,null,null,null,null,null,null,null,null,null,null,null,null,null,null,{"$f":"AM39","v":0},null,null,null,null,null,null,null,null,null,null,null,null,null,null,null,null,null,{"$f":"BE39","v":0},null,null,null,null,null,null,null,null,null,null,null,null,null,null,null,null,null,{"$f":"BW39","v":0},null,null,null,null,null,null,null,null,null,null,null,null,null,null,null,null,null,null,null,null,null,{"$f":"C131","v":0},null,null,null,null,null,null,null,null,null,null,null,null,null,null,null,null,null,{"$f":"U131","v":0},null,null,null,null,null,null,null,null,null,null,null,null,null,null,null,null,null,{"$f":"AM131","v":0},null,null,null,null,null,null,null,null,null,null,null,null,null,null,null,null,null,{"$f":"BE131","v":0},null,null,null,null,null,null,null,null,null,null,null,null,null,null,null,null,null,{"$f":"BW131","v":0}]
[]
[]
[null,null,"(摘要)",null,null,null,null,{"$f":"H42","v":0},null,null,null,null,null,null,null,null,null,null,null,null,null,null,null,null,null,null,null,null,null,null,null,null,null,null,null,null,null,null,null,null,null,null,null,null,null,null,null,null,null,null,null,null,null,null,null,null,null,null,null,null,null,null,null,null,null,null,null,null,null,null,null,null,null,null,null,null,null,null,null,null,null,null,null,null,null,null,null,null,null,null,null,null,null,null,null,null,"(摘要)",null,null,null,null,{"$f":"H134","v":0}]
[]
[]
[]
[]
[]
[]
[null,null,"生命保険料\nの金額の\n内訳",null,null,null,null,null,"新生命保険料\nの金額",null,null,null,null,null,null,null,"円",null,null,null,null,null,null,null,"旧生命保険料の金額",null,null,null,null,null,null,null,"円",null,null,null,null,null,null,null,null,"介護医療保\n険料の金額",null,null,null,null,null,null,null,"円",null,null,null,null,null,null,"新個人年金\n保険料の金額",null,null,null,null,null,null,null,null,"円",null,null,null,null,null,null,null,"旧個人年金\n保険料の金額",null,null,null,null,null,null,null,"円",null,null,null,null,null,null,null,null,null,null,null,null,null,null,"生命保険料\nの金額の\n内訳",null,null,null,null,null,"新生命保険料\nの金額",null,null,null,null,null,null,null,"円",null,null,null,null,null,null,null,"旧生命保険料の金額",null,null,null,null,null,null,null,"円",null,null,null,null,null,null,null,null,"介護医療保\n険料の金額",null,null,null,null,null,null,null,"円",null,null,null,null,null,null,"新個人年金\n保険料の金額",null,null,null,null,null,null,null,null,"円",null,null,null,null,null,null,null,"旧個人年金\n保険料の金額",null,null,null,null,null,null,null,"円"]
[null,null,null,null,null,null,null,null,null,null,null,null,null,null,null,null,{"$f":"Q50","v":0},null,null,null,null,null,null,null,null,null,null,null,null,null,null,null,{"$f":"AG50","v":0},null,null,null,null,null,null,null,null,null,null,null,null,null,null,null,null,{"$f":"AX50","v":0},null,null,null,null,null,null,null,null,null,null,null,null,null,null,null,{"$f":"BN50","v":0},null,null,null,null,null,null,null,null,null,null,null,null,null,null,null,{"$f":"CD50","v":0},null,null,null,null,null,null,null,null,null,null,null,null,null,null,null,null,null,null,null,null,null,null,null,null,null,null,null,null,{"$f":"Q142","v":0},null,null,null,null,null,null,null,null,null,null,null,null,null,null,null,{"$f":"AG142","v":0},null,null,null,null,null,null,null,null,null,null,null,null,null,null,null,null,{"$f":"AX142","v":0},null,null,null,null,null,null,null,null,null,null,null,null,null,null,null,{"$f":"BN142","v":0},null,null,null,null,null,null,null,null,null,null,null,null,null,null,null,{"$f":"CD142","v":0}]
[null,null,"住宅借入金\n等特別控除\nの額の内訳",null,null,null,null,null,"住宅借入金等\n特別控除適用数",null,null,null,null,null,null,null,{"$f":"Q51","v":0},null,null,null,null,null,null,null,"居住開始年月日（１回目）",null,null,null,null,null,null,null,"年",null,null,null,null,null,"月",null,null,null,null,"日",null,null,null,null,"住宅借入金等\n特別控除区分（１回目）",null,null,null,null,null,null,null,null,{"$f":"BF51","v":0},null,null,null,null,null,null,null,"住宅借入金等\n年末残高（１回目）",null,null,null,null,null,null,null,"円",null,null,null,null,null,null,null,null,null,null,null,null,null,null,null,null,null,null,null,null,null,null,"住宅借入金\n等特別控除\nの額の内訳",null,null,null,null,null,"住宅借入金等\n特別控除適用数",null,null,null,null,null,null,null,{"$f":"Q143","v":0},null,null,null,null,null,null,null,"居住開始年月日（１回目）",null,null,null,null,null,null,null,"年",null,null,null,null,null,"月",null,null,null,null,"日",null,null,null,null,"住宅借入金等\n特別控除区分（１回目）",null,null,null,null,null,null,null,null,{"$f":"BF143","v":0},null,null,null,null,null,null,null,"住宅借入金等\n年末残高（１回目）",null,null,null,null,null,null,null,"円"]
[null,null,null,null,null,null,null,null,null,null,null,null,null,null,null,null,null,null,null,null,null,null,null,null,null,null,null,null,null,null,null,null,{"$f":"AG52","v":0},null,null,null,null,null,{"$f":"AM52","v":0},null,null,null,null,{"$f":"AR52","v":0},null,null,null,null,null,null,null,null,null,null,null,null,null,null,null,null,null,null,null,null,null,null,null,null,null,null,null,null,null,{"$f":"BV52","v":0},null,null,null,null,null,null,null,null,null,null,null,null,null,null,null,null,null,null,null,null,null,null,null,null,null,null,null,null,null,null,null,null,null,null,null,null,null,null,null,null,null,null,null,null,null,null,null,null,null,null,null,null,{"$f":"AG144","v":0},null,null,null,null,null,{"$f":"AM144","v":0},null,null,null,null,{"$f":"AR144","v":0},null,null,null,null,null,null,null,null,null,null,null,null,null,null,null,null,null,null,null,null,null,null,null,null,null,null,null,null,null,{"$f":"BV144","v":0}]
[null,null,null,null,null,null,null,null,"住宅借入金等\n特別控除可能額",null,null,null,null,null,null,null,"円",null,null,null,null,null,null,null,"居住開始年月日（２回目）",null,null,null,null,null,null,null,"年",null,null,null,null,null,"月",null,null,null,null,"日",null,null,null,null,"住宅借入金等\n特別控除区分（２回目）",null,null,null,null,null,null,null,null,{"$f":"BF53","v":0},null,null,null,null,null,null,null,"住宅借入金等\n年末残高（２回目）",null,null,null,null,null,null,null,"円",null,null,null,null,null,null,null,null,null,null,null,null,null,null,null,null,null,null,null,null,null,null,null,null,null,null,null,null,"住宅借入金等\n特別控除可能額",null,null,null,null,null,null,null,"円",null,null,null,null,null,null,null,"居住開始年月日（２回目）",null,null,null,null,null,null,null,"年",null,null,null,null,null,"月",null,null,null,null,"日",null,null,null,null,"住宅借入金等\n特別控除区分（２回目）",null,null,null,null,null,null,null,null,{"$f":"BF145","v":0},null,null,null,null,null,null,null,"住宅借入金等\n年末残高（２回目）",null,null,null,null,null,null,null,"円"]
[null,null,null,null,null,null,null,null,null,null,null,null,null,null,null,null,{"$f":"Q54","v":0},null,null,null,null,null,null,null,null,null,null,null,null,null,null,null,{"$f":"AG54","v":0},null,null,null,null,null,{"$f":"AM54","v":0},null,null,null,null,{"$f":"AR54","v":0},null,null,null,null,null,null,null,null,null,null,null,null,null,null,null,null,null,null,null,null,null,null,null,null,null,null,null,null,null,{"$f":"BV54","v":0},null,null,null,null,null,null,null,null,null,null,null,null,null,null,null,null,null,null,null,null,null,null,null,null,null,null,null,null,null,null,null,null,null,null,null,null,{"$f":"Q146","v":0},null,null,null,null,null,null,null,null,null,null,null,null,null,null,null,{"$f":"AG146","v":0},null,null,null,null,null,{"$f":"AM146","v":0},null,null,null,null,{"$f":"AR146","v":0},null,null,null,null,null,null,null,null,null,null,null,null,null,null,null,null,null,null,null,null,null,null,null,null,null,null,null,null,null,{"$f":"BV146","v":0}]
[null,null,"（源泉・特別）控除対象\n配偶者",null,null,null,null,"（フリガナ）",null,null,null,null,null,null,null,{"$f":"P55","v":0},null,null,null,null,null,null,null,null,null,null,null,null,null,null,null,null,null,"区分",null,{"$f":"$AJ$55","v":0},null,null,null,"配偶者の\n合計所得",null,null,null,null,null,null,"円",null,null,null,null,null,null,null,null,null,"国民年金保険\n料等の金額",null,null,null,null,null,null,"円",null,null,null,null,null,null,null,null,null,"旧長期損害\n保険料の金額",null,null,null,null,null,null,"円",null,null,null,null,null,null,null,null,null,null,null,null,null,null,null,"（源泉・特別）控除対象\n配偶者",null,null,null,null,"（フリガナ）",null,null,null,null,null,null,null,{"$f":"$P$55","v":0},null,null,null,null,null,null,null,null,null,null,null,null,null,null,null,null,null,"区分",null,{"$f":"$AJ$55","v":0},null,null,null,"配偶者の\n合計所得",null,null,null,null,null,null,"円",null,null,null,null,null,null,null,null,null,"国民年金保険\n料等の金額",null,null,null,null,null,null,"円",null,null,null,null,null,null,null,null,null,"旧長期損害\n保険料の金額",null,null,null,null,null,null,"円"]
[null,null,null,null,null,null,null,"氏名",null,null,null,null,null,null,null,{"$f":"$P$56","v":0},null,null,null,null,null,null,null,null,null,null,null,null,null,null,null,null,null,null,null,null,null,null,null,null,null,null,null,null,null,null,{"$f":"$AU$56","v":0},null,null,null,null,null,null,null,null,null,null,null,null,null,null,null,null,{"$f":"$BL$56","v":0},null,null,null,null,null,null,null,null,null,null,null,null,null,null,null,null,{"$f":"$CC$56","v":0},null,null,null,null,null,null,null,null,null,null,null,null,null,null,null,null,null,null,null,null,"氏名",null,null,null,null,null,null,null,{"$f":"$P$148","v":0},null,null,null,null,null,null,null,null,null,null,null,null,null,null,null,null,null,null,null,null,null,null,null,null,null,null,null,null,null,null,{"$f":"$AU$56","v":0},null,null,null,null,null,null,null,null,null,null,null,null,null,null,null,null,{"$f":"$BL$56","v":0},null,null,null,null,null,null,null,null,null,null,null,null,null,null,null,null,{"$f":"$CC$56","v":0}]
[null,null,null,null,null,null,null,null,null,null,null,null,null,null,null,null,null,null,null,null,null,null,null,null,null,null,null,null,null,null,null,null,null,null,null,null,null,null,null,null,null,null,null,null,null,null,null,null,null,null,null,null,null,null,null,null,"基礎控除の額",null,null,null,null,null,null,"円",null,null,null,null,null,null,null,null,null,"所得金額\n調整控除額",null,null,null,null,null,null,"円",null,null,null,null,null,null,null,null,null,null,null,null,null,null,null,null,null,null,null,null,null,null,null,null,null,null,null,null,null,null,null,null,null,null,null,null,null,null,null,null,null,null,null,null,null,null,null,null,null,null,null,null,null,null,null,null,null,null,null,null,null,null,null,null,null,null,null,null,null,"基礎控除の額",null,null,null,null,null,null,"円",null,null,null,null,null,null,null,null,null,"所得金額\n調整控除額",null,null,null,null,null,null,"円"]
[null,null,null,null,null,null,null,"個人番号",null,null,null,null,null,null,null,{"$f":"$P$58","v":0},null,null,null,null,null,null,null,null,null,null,null,null,null,null,null,null,null,null,null,null,null,null,null,null,null,null,null,null,null,null,null,null,null,null,null,null,null,null,null,null,null,null,null,null,null,null,null,null,null,null,null,null,null,null,null,null,null,null,null,null,null,null,null,null,null,null,null,null,null,null,null,null,null,null,null,null,null,null,null,null,null,null,null,null,null,"個人番号"]
[null,null,null,null,null,null,null,null,null,null,null,null,null,null,null,null,null,null,null,null,null,null,null,null,null,null,null,null,null,null,null,null,null,null,null,null,null,null,null,null,null,null,null,null,null,null,null,null,null,null,null,null,null,null,null,null,null,null,null,null,null,null,null,{"$f":"$BL$59","v":0},null,null,null,null,null,null,null,null,null,null,null,null,null,null,null,null,{"$f":"$CC$59","v":0},null,null,null,null,null,null,null,null,null,null,null,null,null,null,null,null,null,null,null,null,null,null,null,null,null,null,null,null,null,null,null,null,null,null,null,null,null,null,null,null,null,null,null,null,null,null,null,null,null,null,null,null,null,null,null,null,null,null,null,null,null,null,null,null,null,null,null,null,null,null,null,null,null,null,null,null,{"$f":"$BL$59","v":0},null,null,null,null,null,null,null,null,null,null,null,null,null,null,null,null,{"$f":"$CC$59","v":0}]
[]
[null,null,"控除対象扶養親族等",null,null,1,null,"（フリガナ）",null,null,null,null,null,null,null,{"$f":"P61","v":0},null,null,null,null,null,null,null,null,null,null,null,null,null,null,null,null,null,"区分",null,{"$f":"AJ61","v":0},null,null,null,"１６歳未満の扶養親族",null,1,null,"（フリガナ）",null,null,null,null,null,null,null,{"$f":"AZ61","v":0},null,null,null,null,null,null,null,null,null,null,null,null,null,null,null,null,null,null,null,null,null,"区分",null,{"$f":"BX61","v":0},null,null,null,"（備考）",null,null,null,null,null,null,null,null,null,null,null,null,null,null,null,null,"控除対象扶養親族等",null,null,1,null,"（フリガナ）",null,null,null,null,null,null,null,{"$f":"P153","v":0},null,null,null,null,null,null,null,null,null,null,null,null,null,null,null,null,null,"区分",null,{"$f":"AJ153","v":0},null,null,null,"１６歳未満の扶養親族",null,1,null,"（フリガナ）",null,null,null,null,null,null,null,{"$f":"AZ153","v":0},null,null,null,null,null,null,null,null,null,null,null,null,null,null,null,null,null,null,null,null,null,"区分",null,{"$f":"IF(BX153=\"\",\"\",BX153)","v":0}]
[null,null,null,null,null,null,null,"氏名",null,null,null,null,null,null,null,{"$f":"P62","v":0},null,null,null,null,null,null,null,null,null,null,null,null,null,null,null,null,null,null,null,null,null,null,null,null,null,null,null,"氏名",null,null,null,null,null,null,null,{"$f":"AZ62","v":0},null,null,null,null,null,null,null,null,null,null,null,null,null,null,null,null,null,null,null,null,null,null,null,null,null,null,null,{"$f":"CB63","v":0},null,null,null,null,null,null,null,null,null,null,null,null,null,null,null,null,null,null,null,null,null,"氏名",null,null,null,null,null,null,null,{"$f":"P154","v":0},null,null,null,null,null,null,null,null,null,null,null,null,null,null,null,null,null,null,null,null,null,null,null,null,null,null,null,"氏名",null,null,null,null,null,null,null,{"$f":"AZ154","v":0}]
[null,null,null,null,null,null,null,"個人番号",null,null,null,null,null,null,null,{"$f":"P63","v":0},null,null,null,null,null,null,null,null,null,null,null,null,null,null,null,null,null,null,null,null,null,null,null,null,null,null,null,"個人番号"]
[]
[null,null,null,null,null,2,null,"（フリガナ）",null,null,null,null,null,null,null,{"$f":"P65","v":0},null,null,null,null,null,null,null,null,null,null,null,null,null,null,null,null,null,"区分",null,{"$f":"AJ65","v":0},null,null,null,null,null,2,null,"（フリガナ）",null,null,null,null,null,null,null,{"$f":"AZ65","v":0},null,null,null,null,null,null,null,null,null,null,null,null,null,null,null,null,null,null,null,null,null,"区分",null,{"$f":"BX65","v":0},null,null,null,null,null,null,null,null,null,null,null,null,null,null,null,null,null,null,null,null,null,null,null,2,null,"（フリガナ）",null,null,null,null,null,null,null,{"$f":"P157","v":0},null,null,null,null,null,null,null,null,null,null,null,null,null,null,null,null,null,"区分",null,{"$f":"AJ157","v":0},null,null,null,null,null,2,null,"（フリガナ）",null,null,null,null,null,null,null,{"$f":"AZ157","v":0},null,null,null,null,null,null,null,null,null,null,null,null,null,null,null,null,null,null,null,null,null,"区分",null,{"$f":"BX157","v":0}]
[null,null,null,null,null,null,null,"氏名",null,null,null,null,null,null,null,{"$f":"P66","v":0},null,null,null,null,null,null,null,null,null,null,null,null,null,null,null,null,null,null,null,null,null,null,null,null,null,null,null,"氏名",null,null,null,null,null,null,null,{"$f":"AZ66","v":0},null,null,null,null,null,null,null,null,null,null,null,null,null,null,null,null,null,null,null,null,null,null,null,null,null,null,null,null,null,null,null,null,null,null,null,null,null,null,null,null,null,null,null,null,null,null,null,null,null,"氏名",null,null,null,null,null,null,null,{"$f":"P158","v":0},null,null,null,null,null,null,null,null,null,null,null,null,null,null,null,null,null,null,null,null,null,null,null,null,null,null,null,"氏名",null,null,null,null,null,null,null,{"$f":"AZ158","v":0}]
[null,null,null,null,null,null,null,"個人番号",null,null,null,null,null,null,null,{"$f":"P67","v":0},null,null,null,null,null,null,null,null,null,null,null,null,null,null,null,null,null,null,null,null,null,null,null,null,null,null,null,"個人番号"]
[]
[null,null,null,null,null,3,null,"（フリガナ）",null,null,null,null,null,null,null,{"$f":"P69","v":0},null,null,null,null,null,null,null,null,null,null,null,null,null,null,null,null,null,"区分",null,{"$f":"AJ69","v":0},null,null,null,null,null,3,null,"（フリガナ）",null,null,null,null,null,null,null,{"$f":"AZ69","v":0},null,null,null,null,null,null,null,null,null,null,null,null,null,null,null,null,null,null,null,null,null,"区分",null,{"$f":"BX69","v":0},null,null,null,null,null,null,null,null,null,null,null,null,null,null,null,null,null,null,null,null,null,null,null,3,null,"（フリガナ）",null,null,null,null,null,null,null,{"$f":"P161","v":0},null,null,null,null,null,null,null,null,null,null,null,null,null,null,null,null,null,"区分",null,{"$f":"AJ161","v":0},null,null,null,null,null,3,null,"（フリガナ）",null,null,null,null,null,null,null,{"$f":"AZ161","v":0},null,null,null,null,null,null,null,null,null,null,null,null,null,null,null,null,null,null,null,null,null,"区分",null,{"$f":"BX161","v":0}]
[null,null,null,null,null,null,null,"氏名",null,null,null,null,null,null,null,{"$f":"P70","v":0},null,null,null,null,null,null,null,null,null,null,null,null,null,null,null,null,null,null,null,null,null,null,null,null,null,null,null,"氏名",null,null,null,null,null,null,null,{"$f":"AZ70","v":0},null,null,null,null,null,null,null,null,null,null,null,null,null,null,null,null,null,null,null,null,null,null,null,null,null,null,null,null,null,null,null,null,null,null,null,null,null,null,null,null,null,null,null,null,null,null,null,null,null,"氏名",null,null,null,null,null,null,null,{"$f":"P162","v":0},null,null,null,null,null,null,null,null,null,null,null,null,null,null,null,null,null,null,null,null,null,null,null,null,null,null,null,"氏名",null,null,null,null,null,null,null,{"$f":"AZ162","v":0}]
[null,null,null,null,null,null,null,"個人番号",null,null,null,null,null,null,null,{"$f":"P71","v":0},null,null,null,null,null,null,null,null,null,null,null,null,null,null,null,null,null,null,null,null,null,null,null,null,null,null,null,"個人番号"]
[]
[null,null,null,null,null,4,null,"（フリガナ）",null,null,null,null,null,null,null,{"$f":"P73","v":0},null,null,null,null,null,null,null,null,null,null,null,null,null,null,null,null,null,"区分",null,{"$f":"AJ73","v":0},null,null,null,null,null,4,null,"（フリガナ）",null,null,null,null,null,null,null,{"$f":"AZ73","v":0},null,null,null,null,null,null,null,null,null,null,null,null,null,null,null,null,null,null,null,null,null,"区分",null,{"$f":"BX73","v":0},null,null,null,null,null,null,null,null,null,null,null,null,null,null,null,null,null,null,null,null,null,null,null,4,null,"（フリガナ）",null,null,null,null,null,null,null,{"$f":"P165","v":0},null,null,null,null,null,null,null,null,null,null,null,null,null,null,null,null,null,"区分",null,{"$f":"AJ165","v":0},null,null,null,null,null,4,null,"（フリガナ）",null,null,null,null,null,null,null,{"$f":"AZ165","v":0},null,null,null,null,null,null,null,null,null,null,null,null,null,null,null,null,null,null,null,null,null,"区分",null,{"$f":"BX165","v":0}]
[null,null,null,null,null,null,null,"氏名",null,null,null,null,null,null,null,{"$f":"P74","v":0},null,null,null,null,null,null,null,null,null,null,null,null,null,null,null,null,null,null,null,null,null,null,null,null,null,null,null,"氏名",null,null,null,null,null,null,null,{"$f":"AZ74","v":0},null,null,null,null,null,null,null,null,null,null,null,null,null,null,null,null,null,null,null,null,null,null,null,null,null,null,null,null,null,null,null,null,null,null,null,null,null,null,null,null,null,null,null,null,null,null,null,null,null,"氏名",null,null,null,null,null,null,null,{"$f":"P166","v":0},null,null,null,null,null,null,null,null,null,null,null,null,null,null,null,null,null,null,null,null,null,null,null,null,null,null,null,"氏名",null,null,null,null,null,null,null,{"$f":"AZ166","v":0}]
[null,null,null,null,null,null,null,"個人番号",null,null,null,null,null,null,null,{"$f":"P75","v":0},null,null,null,null,null,null,null,null,null,null,null,null,null,null,null,null,null,null,null,null,null,null,null,null,null,null,null,"個人番号"]
[]
[null,null,"未成年者",null,null,null,"外国人",null,null,"死亡退職",null,null,"災害者",null,null,"乙　欄",null,null,null,"本人が障害者",null,null,null,null,null,null,null,"寡\n　　\n婦",null,null,null,"ひとり親",null,null,null,"勤労学生",null,null,null,null,null,null,null,"中途就・退職",null,null,null,null,null,null,null,null,null,null,null,null,null,null,null,null,null,null,null,"受給者生年月日",null,null,null,null,null,null,null,null,null,null,null,null,null,null,null,null,null,null,null,null,null,null,null,null,null,null,null,null,null,null,null,null,"未成年者",null,null,null,"外国人",null,null,"死亡退職",null,null,"災害者",null,null,"乙　欄",null,null,null,"本人が障害者",null,null,null,null,null,null,null,"寡\n　　\n婦",null,null,null,"ひとり親",null,null,null,"勤労学生",null,null,null,null,null,null,null,"中途就・退職",null,null,null,null,null,null,null,null,null,null,null,null,null,null,null,null,null,null,null,"受給者生年月日"]
[null,null,null,null,null,null,null,null,null,null,null,null,null,null,null,null,null,null,null,"特別",null,null,null,"その他",null,null,null,null,null,null,null,null,null,null,null,null,null,null,null,null,null,null,null,null,null,null,null,null,null,null,null,null,null,null,null,null,null,null,null,null,null,null,null,null,null,null,null,null,null,null,null,null,null,null,null,null,null,null,null,null,null,null,null,null,null,null,null,null,null,null,null,null,null,null,null,null,null,null,null,null,null,null,null,null,null,null,null,null,null,null,null,null,null,"特別",null,null,null,"その他"]
[null,null,null,null,null,null,null,null,null,null,null,null,null,null,null,null,null,null,null,null,null,null,null,null,null,null,null,null,null,null,null,null,null,null,null,null,null,null,null,null,null,null,null,"就職",null,null,null,"退職",null,null,null,"年",null,null,null,"月",null,null,null,"日",null,null,null,"元　号",null,null,null,null,null,null,null,null,null,null,null,null,null,null,null,"年",null,null,null,"月",null,null,null,"日",null,null,null,null,null,null,null,null,null,null,null,null,null,null,null,null,null,null,null,null,null,null,null,null,null,null,null,null,null,null,null,null,null,null,null,null,null,null,null,null,null,null,null,null,null,null,null,null,null,"就職",null,null,null,"退職",null,null,null,"年",null,null,null,"月",null,null,null,"日",null,null,null,"元　号",null,null,null,null,null,null,null,null,null,null,null,null,null,null,null,"年",null,null,null,"月",null,null,null,"日"]
["（税務署提出用）",null,null,null,null,null,null,null,null,null,null,null,null,null,null,null,null,null,null,null,null,null,null,null,null,null,null,null,null,null,null,null,null,null,null,null,null,null,null,null,null,null,null,null,null,null,null,null,null,null,null,null,null,null,null,null,null,null,null,null,null,null,null,null,null,null,null,null,null,null,null,null,null,null,null,null,null,null,null,null,null,null,null,null,null,null,null,null,null,null,null,null,null,null,"（受給者交付用）"]
[null,null,{"$f":"$C$81","v":0},null,null,null,{"$f":"$G$81","v":0},null,null,{"$f":"$J$81","v":0},null,null,{"$f":"$M$81","v":0},null,null,{"$f":"$P$81","v":0},null,null,null,{"$f":"$T$81","v":0},null,null,null,{"$f":"$X$81","v":0},null,null,null,{"$f":"$AB$81","v":0},null,null,null,{"$f":"$AF$81","v":0},null,null,null,{"$f":"$AJ$81","v":0},null,null,null,null,null,null,null,{"$f":"$AR$81","v":0},null,null,null,{"$f":"$AV$81","v":0},null,null,null,{"$f":"$AZ$81","v":7},null,null,null,{"$f":"$BD$81","v":0},null,null,null,{"$f":"$BH$81","v":0},null,null,null,{"$f":"$BL$81","v":0},null,null,null,null,null,null,null,null,null,null,null,null,null,null,null,{"$f":"$CB$81","v":0},null,null,null,{"$f":"$CF$81","v":0},null,null,null,{"$f":"$CJ$81","v":0},null,null,null,null,null,null,null,null,{"$f":"$C$81","v":0},null,null,null,{"$f":"$G$81","v":0},null,null,{"$f":"$J$81","v":0},null,null,{"$f":"$M$81","v":0},null,null,{"$f":"$P$81","v":0},null,null,null,{"$f":"$T$81","v":0},null,null,null,{"$f":"$X$81","v":0},null,null,null,{"$f":"$AB$81","v":0},null,null,null,{"$f":"$AF$81","v":0},null,null,null,{"$f":"$AJ$81","v":0},null,null,null,null,null,null,null,{"$f":"$AR$81","v":0},null,null,null,{"$f":"$AV$81","v":0},null,null,null,{"$f":"$AZ$81","v":7},null,null,null,{"$f":"$BD$81","v":0},null,null,null,{"$f":"$BH$81","v":0},null,null,null,{"$f":"$BL$81","v":0},null,null,null,null,null,null,null,null,null,null,null,null,null,null,null,{"$f":"$CB$81","v":0},null,null,null,{"$f":"$CF$81","v":0},null,null,null,{"$f":"$CJ$81","v":0}]
[]
[null,null,"支　払　者",null,null,null,"個人番号又は\n法人番号",null,null,null,null,null,null,null,null,{"$f":"P83","v":0},null,null,null,null,null,null,null,null,null,null,null,null,null,null,null,null,null,null,null,null,null,null,null,null,null,"(支払者の法人番号13桁、個人事業主の場合は個人番号12桁を記載してください。)",null,null,null,null,null,null,null,null,null,null,null,null,null,null,null,null,null,null,null,null,null,null,null,null,null,null,null,null,null,null,null,null,null,null,null,null,null,null,null,null,null,null,null,null,null,null,null,null,null,null,null,null,null,null,"支　払　者"]
[]
[null,null,null,null,null,null,"住所（居所）\n又は所在地",null,null,null,null,null,null,null,null,{"$f":"P85","v":0},null,null,null,null,null,null,null,null,null,null,null,null,null,null,null,null,null,null,null,null,null,null,null,null,null,null,null,null,null,null,null,null,null,null,null,null,null,null,null,null,null,null,null,null,null,null,null,null,null,null,null,null,null,null,null,null,null,null,null,null,null,null,null,null,null,null,null,null,null,null,null,null,null,null,null,null,null,null,null,null,null,null,null,null,"住所（居所）\n又は所在地",null,null,null,null,null,null,null,null,{"$f":"P177","v":0}]
[]
[null,null,null,null,null,null,"氏名又は名称",null,null,null,null,null,null,null,null,{"$f":"P87","v":0},null,null,null,null,null,null,null,null,null,null,null,null,null,null,null,null,null,null,null,null,null,null,null,null,null,null,null,null,null,null,null,null,null,null,null,null,null,null,null,null,null,null,null,null,null,null,null,null,null,null,null,null,null,"（電話）",null,null,null,null,{"$f":"BW87","v":0},null,null,null,null,null,null,null,null,null,null,null,null,null,null,null,null,null,null,null,null,null,null,null,null,null,"氏名又は名称",null,null,null,null,null,null,null,null,{"$f":"P179","v":0},null,null,null,null,null,null,null,null,null,null,null,null,null,null,null,null,null,null,null,null,null,null,null,null,null,null,null,null,null,null,null,null,null,null,null,null,null,null,null,null,null,null,null,null,null,null,null,null,null,null,null,null,null,"（電話）",null,null,null,null,{"$f":"BW179","v":0}]
[]
[]
[null,null,"整　理　欄"]